[Event "Titled Tuesday Blitz July 4 Late 2023"]
[White "Romero Ruscalleda, Josep"]
[Black "Osmonbekov, Talaibek"]
[WhiteFideId "2231859"]
[BlackFideId "2017253"]
[WhiteElo "2417"]
[BlackElo "2147"]
[Result "1-0"]
[Round "4"]
[TimeControl "180+2"]
[Date "2023.07.04"]
[WhiteClock "0:00:15"]
[BlackClock "0:00:00"]
[Board "147"]

1. e4 {[%clk 0:03:00]}  c5 {[%clk 0:02:59]} 2. c3 {[%clk 0:03:00]}  d5 {[%clk 0:02:59]} 3. exd5 {[%clk 0:03:00]}  Qxd5 {[%clk 0:03:00]} 4. Nf3 {[%clk 0:02:59]}  Nf6 {[%clk 0:03:00]} 5. Na3 {[%clk 0:02:59]}  e6 {[%clk 0:02:50]} 6. Bc4 {[%clk 0:02:56]}  Qd8 {[%clk 0:02:48]} 7. O-O {[%clk 0:02:55]}  Be7 {[%clk 0:02:48]} 8. d4 {[%clk 0:02:52]}  cxd4 {[%clk 0:02:48]} 9. Nxd4 {[%clk 0:02:52]}  O-O {[%clk 0:02:48]} 10. Nac2 {[%clk 0:02:51]}  e5 {[%clk 0:02:45]} 11. Nf3 {[%clk 0:02:50]}  Nc6 {[%clk 0:02:45]} 12. h3 {[%clk 0:02:45]}  Bf5 {[%clk 0:02:38]} 13. Qe2 {[%clk 0:02:42]}  Qc7 {[%clk 0:02:22]} 14. Ne3 {[%clk 0:02:39]}  Bg6 {[%clk 0:02:21]} 15. Nh4 {[%clk 0:02:35]}  Rfe8 {[%clk 0:02:00]} 16. Rd1 {[%clk 0:02:13]}  Bf8 {[%clk 0:01:50]} 17. Nxg6 {[%clk 0:02:06]}  hxg6 {[%clk 0:01:50]} 18. Qf3 {[%clk 0:02:05]}  Rad8 {[%clk 0:01:45]} 19. Bd2 {[%clk 0:02:00]}  e4 {[%clk 0:01:37]} 20. Qe2 {[%clk 0:01:48]}  a6 {[%clk 0:01:36]} 21. Nf1 {[%clk 0:01:43]}  Ne5 {[%clk 0:01:35]} 22. Bb3 {[%clk 0:01:41]}  Nd3 {[%clk 0:01:34]} 23. Be3 {[%clk 0:01:38]}  b5 {[%clk 0:01:24]} 24. Ng3 {[%clk 0:01:36]}  Nf4 {[%clk 0:01:17]} 25. Qc2 {[%clk 0:01:24]}  Bc5 {[%clk 0:01:03]} 26. Rxd8 {[%clk 0:01:17]}  Rxd8 {[%clk 0:01:00]} 27. Bxc5 {[%clk 0:01:02]}  Qxc5 {[%clk 0:00:58]} 28. Nxe4 {[%clk 0:01:01]}  Nxe4 {[%clk 0:00:32]} 29. Qxe4 {[%clk 0:01:00]}  Qg5 {[%clk 0:00:32]} 30. Kh2 {[%clk 0:00:28]}  Rd2 {[%clk 0:00:22]} 31. Rf1 {[%clk 0:00:18]}  Rxb2 {[%clk 0:00:18]} 32. g3 {[%clk 0:00:17]}  Nh5 {[%clk 0:00:12]} 33. Qe8+ {[%clk 0:00:17]}  Kh7 {[%clk 0:00:12]} 34. Qxf7 {[%clk 0:00:17]}  Qxg3+ {[%clk 0:00:12]} 35. Kh1 {[%clk 0:00:15]}  Qxh3+ {[%clk 0:00:12]} 36. Kg1 {[%clk 0:00:16]}  Qg4+ {[%clk 0:00:09]} 37. Kh1 {[%clk 0:00:16]}  Nf4 {[%clk 0:00:07]} 38. Qg8+ {[%clk 0:00:15]}  Kh6 {[%clk 0:00:07]} 39. Qh8+ {[%clk 0:00:15]}  Kg5 {[%clk 0:00:07]} 40. Rg1 {[%clk 0:00:15]}  Rxf2 {[%clk 0:00:02]} 41. Rxg4+ {[%clk 0:00:15]}  Kxg4 {[%clk 0:00:03]} 42. Kg1 {[%clk 0:00:15]}  Rg2+ {[%clk 0:00:00]} 43. Kf1 {[%clk 0:00:15]} 1-0


[Site "https://www.chess.com"]

[Event "Titled Tuesday Blitz July 4 Late 2023"]
[White "Tsukerman, Julia"]
[Black "Szyszylo, Rafal"]
[WhiteFideId "2621649"]
[BlackFideId "1109626"]
[WhiteElo "2099"]
[BlackElo "2405"]
[Result "0-1"]
[Round "4"]
[TimeControl "180+2"]
[Date "2023.07.04"]
[WhiteClock "0:00:08"]
[BlackClock "0:00:25"]
[Board "151"]

1. e4 {[%clk 0:03:00]}  d6 {[%clk 0:03:00]} 2. d4 {[%clk 0:02:59]}  g6 {[%clk 0:03:01]} 3. Nc3 {[%clk 0:02:58]}  Nf6 {[%clk 0:03:02]} 4. Be3 {[%clk 0:02:58]}  c6 {[%clk 0:03:02]} 5. f3 {[%clk 0:02:59]}  Nbd7 {[%clk 0:03:01]} 6. Qd2 {[%clk 0:03:00]}  b5 {[%clk 0:03:02]} 7. O-O-O {[%clk 0:03:00]}  Nb6 {[%clk 0:03:02]} 8. g4 {[%clk 0:02:58]}  b4 {[%clk 0:03:00]} 9. Nb1 {[%clk 0:02:58]}  a5 {[%clk 0:03:00]} 10. h4 {[%clk 0:02:56]}  h5 {[%clk 0:02:59]} 11. g5 {[%clk 0:02:54]}  Nfd7 {[%clk 0:03:00]} 12. f4 {[%clk 0:02:53]}  Bg7 {[%clk 0:03:00]} 13. f5 {[%clk 0:02:51]}  Qc7 {[%clk 0:03:00]} 14. Bd3 {[%clk 0:02:35]}  c5 {[%clk 0:02:57]} 15. fxg6 {[%clk 0:02:22]}  fxg6 {[%clk 0:02:48]} 16. e5 {[%clk 0:02:19]}  O-O {[%clk 0:02:07]} 17. Bxg6 {[%clk 0:01:59]}  dxe5 {[%clk 0:01:57]} 18. dxc5 {[%clk 0:01:50]}  Na4 {[%clk 0:01:49]} 19. Bxh5 {[%clk 0:01:20]}  Ndxc5 {[%clk 0:01:47]} 20. Ne2 {[%clk 0:01:04]}  Be6 {[%clk 0:01:31]} 21. b3 {[%clk 0:00:43]}  Bxb3 {[%clk 0:00:47]} 22. Bxc5 {[%clk 0:00:34]}  Nxc5 {[%clk 0:00:46]} 23. Kb2 {[%clk 0:00:27]}  Be6 {[%clk 0:00:40]} 24. Qe1 {[%clk 0:00:14]}  e4+ {[%clk 0:00:39]} 25. Nd4 {[%clk 0:00:14]}  Rad8 {[%clk 0:00:36]} 26. Qe3 {[%clk 0:00:12]}  Qe5 {[%clk 0:00:33]} 27. Kc1 {[%clk 0:00:12]}  Rxd4 {[%clk 0:00:31]} 28. Rhe1 {[%clk 0:00:10]}  Rxd1+ {[%clk 0:00:31]} 29. Rxd1 {[%clk 0:00:10]}  Qb2+ {[%clk 0:00:30]} 30. Kd2 {[%clk 0:00:11]}  Rd8+ {[%clk 0:00:25]} 31. Ke2 {[%clk 0:00:10]}  Rxd1 {[%clk 0:00:25]} 32. Kxd1 {[%clk 0:00:10]}  Qxb1+ {[%clk 0:00:25]} 33. Ke2 {[%clk 0:00:10]}  Qxc2+ {[%clk 0:00:25]} 34. Kf1 {[%clk 0:00:08]}  Qd3+ {[%clk 0:00:25]} 0-1


[Site "https://www.chess.com"]

[Event "Titled Tuesday Blitz July 4 Late 2023"]
[White "Melikhov, Evgeny V."]
[Black "Graham, Nathaniel"]
[WhiteFideId "4122046"]
[BlackFideId "2007983"]
[WhiteElo "2405"]
[BlackElo "2068"]
[Result "1-0"]
[Round "4"]
[TimeControl "180+2"]
[Date "2023.07.04"]
[WhiteClock "0:00:54"]
[BlackClock "0:00:00"]
[Board "152"]

1. d4 {[%clk 0:03:00]}  d5 {[%clk 0:02:58]} 2. c4 {[%clk 0:03:00]}  c6 {[%clk 0:02:58]} 3. Nc3 {[%clk 0:03:00]}  dxc4 {[%clk 0:02:58]} 4. e4 {[%clk 0:02:59]}  b5 {[%clk 0:02:58]} 5. a4 {[%clk 0:02:59]}  b4 {[%clk 0:02:57]} 6. Na2 {[%clk 0:02:58]}  Nf6 {[%clk 0:02:58]} 7. e5 {[%clk 0:02:58]}  Nd5 {[%clk 0:02:58]} 8. Bxc4 {[%clk 0:02:57]}  e6 {[%clk 0:02:58]} 9. Nf3 {[%clk 0:02:57]}  Be7 {[%clk 0:02:59]} 10. O-O {[%clk 0:02:56]}  Nd7 {[%clk 0:02:59]} 11. Bd2 {[%clk 0:02:51]}  a5 {[%clk 0:02:59]} 12. Qe2 {[%clk 0:02:49]}  Bb7 {[%clk 0:02:58]} 13. Nc1 {[%clk 0:02:48]}  O-O {[%clk 0:02:55]} 14. Nb3 {[%clk 0:02:48]}  c5 {[%clk 0:02:52]} 15. Rfc1 {[%clk 0:02:20]}  Qb6 {[%clk 0:02:29]} 16. Bg5 {[%clk 0:02:13]}  Bxg5 {[%clk 0:02:20]} 17. Nxg5 {[%clk 0:02:13]}  cxd4 {[%clk 0:02:13]} 18. Qe4 {[%clk 0:01:59]}  g6 {[%clk 0:02:01]} 19. Nxd4 {[%clk 0:01:57]}  Kg7 {[%clk 0:00:56]} 20. Qh4 {[%clk 0:01:46]}  h6 {[%clk 0:00:51]} 21. Ngf3 {[%clk 0:01:45]}  Rac8 {[%clk 0:00:41]} 22. Bb5 {[%clk 0:01:45]}  Qd8 {[%clk 0:00:18]} 23. Rxc8 {[%clk 0:01:26]}  Qxc8 {[%clk 0:00:17]} 24. Bxd7 {[%clk 0:01:23]}  Qxd7 {[%clk 0:00:16]} 25. Nb5 {[%clk 0:01:17]}  Nb6 {[%clk 0:00:07]} 26. Qf6+ {[%clk 0:01:10]}  Kg8 {[%clk 0:00:07]} 27. Nd6 {[%clk 0:01:07]}  Bxf3 {[%clk 0:00:07]} 28. Qxf3 {[%clk 0:01:07]}  Nd5 {[%clk 0:00:07]} 29. b3 {[%clk 0:01:02]}  Nc3 {[%clk 0:00:07]} 30. h4 {[%clk 0:00:55]}  h5 {[%clk 0:00:06]} 31. g4 {[%clk 0:00:54]}  hxg4 {[%clk 0:00:00]} 32. Qxg4 {[%clk 0:00:54]} 1-0


[Site "https://www.chess.com"]

[Event "Titled Tuesday Blitz July 4 Late 2023"]
[White "a-z30"]
[Black "Vargas, Mauricio"]
[BlackFideId "4404572"]
[WhiteElo "2487"]
[BlackElo "1881"]
[Result "1-0"]
[Round "4"]
[TimeControl "180+2"]
[Date "2023.07.04"]
[WhiteClock "0:01:01"]
[BlackClock "0:00:00"]
[Board "155"]

1. d4 {[%clk 0:03:00]}  d5 {[%clk 0:02:59]} 2. c4 {[%clk 0:03:01]}  c6 {[%clk 0:02:59]} 3. Nf3 {[%clk 0:03:00]}  e6 {[%clk 0:02:59]} 4. e3 {[%clk 0:03:00]}  Nf6 {[%clk 0:03:00]} 5. b3 {[%clk 0:02:56]}  Nbd7 {[%clk 0:02:59]} 6. Nbd2 {[%clk 0:02:53]}  Bb4 {[%clk 0:02:58]} 7. Bd3 {[%clk 0:02:45]}  O-O {[%clk 0:02:56]} 8. O-O {[%clk 0:02:43]}  Re8 {[%clk 0:02:46]} 9. Bb2 {[%clk 0:02:42]}  Nf8 {[%clk 0:02:42]} 10. e4 {[%clk 0:02:30]}  dxe4 {[%clk 0:02:40]} 11. Nxe4 {[%clk 0:02:29]}  Nxe4 {[%clk 0:02:30]} 12. Bxe4 {[%clk 0:02:29]}  f5 {[%clk 0:02:22]} 13. Bc2 {[%clk 0:02:26]}  Bd6 {[%clk 0:02:21]} 14. Re1 {[%clk 0:02:25]}  Qf6 {[%clk 0:02:15]} 15. Qe2 {[%clk 0:02:22]}  Bc7 {[%clk 0:02:11]} 16. Rad1 {[%clk 0:02:16]}  g5 {[%clk 0:02:11]} 17. b4 {[%clk 0:02:13]}  g4 {[%clk 0:02:11]} 18. Ne5 {[%clk 0:02:12]}  Ng6 {[%clk 0:02:01]} 19. Bb3 {[%clk 0:01:56]}  Nf4 {[%clk 0:01:40]} 20. Qd2 {[%clk 0:01:54]}  Nh3+ {[%clk 0:01:26]} 21. gxh3 {[%clk 0:01:47]}  gxh3 {[%clk 0:01:24]} 22. Kh1 {[%clk 0:01:47]}  Kh8 {[%clk 0:01:22]} 23. d5 {[%clk 0:01:38]}  cxd5 {[%clk 0:01:19]} 24. cxd5 {[%clk 0:01:35]}  Kg8 {[%clk 0:00:32]} 25. Rg1+ {[%clk 0:01:29]}  Kf8 {[%clk 0:00:23]} 26. d6 {[%clk 0:01:30]}  Rd8 {[%clk 0:00:17]} 27. Nd7+ {[%clk 0:01:26]}  Kf7 {[%clk 0:00:12]} 28. Bxf6 {[%clk 0:01:27]}  Bxd7 {[%clk 0:00:09]} 29. Rg7+ {[%clk 0:01:24]}  Kxf6 {[%clk 0:00:09]} 30. Qg5+ {[%clk 0:01:24]}  Ke5 {[%clk 0:00:07]} 31. dxc7 {[%clk 0:01:22]}  Bc6+ {[%clk 0:00:07]} 32. Kg1 {[%clk 0:01:19]}  Rxd1+ {[%clk 0:00:06]} 33. Bxd1 {[%clk 0:01:18]}  Rc8 {[%clk 0:00:06]} 34. Qd8 {[%clk 0:01:05]}  Rxc7 {[%clk 0:00:03]} 35. Qxc7+ {[%clk 0:01:05]}  Kd4 {[%clk 0:00:01]} 36. Qd6+ {[%clk 0:01:04]}  Bd5 {[%clk 0:00:01]} 37. Bb3 {[%clk 0:01:03]}  Kc3 {[%clk 0:00:00]} 38. Rg3+ {[%clk 0:01:01]} 1-0


[Site "https://www.chess.com"]

[Event "Titled Tuesday Blitz July 4 Late 2023"]
[White "Reprintsev, Alexander"]
[Black "Santos, Rafael Ventura Dos"]
[WhiteFideId "14100541"]
[BlackFideId "2122227"]
[WhiteElo "2480"]
[BlackElo "2274"]
[Result "1-0"]
[Round "4"]
[TimeControl "180+2"]
[Date "2023.07.04"]
[WhiteClock "0:00:09"]
[BlackClock "0:00:32"]
[Board "156"]

1. e4 {[%clk 0:02:42]}  c5 {[%clk 0:02:59]} 2. b3 {[%clk 0:02:30]}  Nf6 {[%clk 0:02:58]} 3. e5 {[%clk 0:02:26]}  Nd5 {[%clk 0:02:58]} 4. Nc3 {[%clk 0:02:26]}  Nxc3 {[%clk 0:02:57]} 5. dxc3 {[%clk 0:02:26]}  g6 {[%clk 0:02:57]} 6. Qd5 {[%clk 0:02:24]}  e6 {[%clk 0:02:51]} 7. Qd2 {[%clk 0:02:23]}  Bg7 {[%clk 0:02:49]} 8. f4 {[%clk 0:02:19]}  O-O {[%clk 0:02:49]} 9. Bb2 {[%clk 0:02:17]}  Nc6 {[%clk 0:02:46]} 10. O-O-O {[%clk 0:02:17]}  f6 {[%clk 0:02:46]} 11. exf6 {[%clk 0:02:10]}  Qxf6 {[%clk 0:02:46]} 12. g3 {[%clk 0:02:07]}  d5 {[%clk 0:02:45]} 13. Nf3 {[%clk 0:02:06]}  a5 {[%clk 0:02:32]} 14. Bb5 {[%clk 0:01:48]}  a4 {[%clk 0:02:30]} 15. Bxa4 {[%clk 0:01:46]}  Rxa4 {[%clk 0:02:30]} 16. bxa4 {[%clk 0:01:46]}  Na5 {[%clk 0:02:30]} 17. Ne5 {[%clk 0:01:43]}  Rd8 {[%clk 0:02:12]} 18. c4 {[%clk 0:01:38]}  Nc6 {[%clk 0:02:07]} 19. Nd3 {[%clk 0:01:36]}  d4 {[%clk 0:01:57]} 20. Ne5 {[%clk 0:01:35]}  Nxe5 {[%clk 0:01:56]} 21. fxe5 {[%clk 0:01:35]}  Qxe5 {[%clk 0:01:55]} 22. Rde1 {[%clk 0:01:35]}  Qh5 {[%clk 0:01:55]} 23. Qe2 {[%clk 0:01:34]}  Qxe2 {[%clk 0:01:52]} 24. Rxe2 {[%clk 0:01:33]}  b6 {[%clk 0:01:50]} 25. Rhe1 {[%clk 0:01:30]}  e5 {[%clk 0:01:50]} 26. c3 {[%clk 0:01:28]}  Ba6 {[%clk 0:01:48]} 27. cxd4 {[%clk 0:01:26]}  cxd4 {[%clk 0:01:49]} 28. Rxe5 {[%clk 0:00:29]}  d3 {[%clk 0:01:16]} 29. Rd5 {[%clk 0:00:22]}  Bh6+ {[%clk 0:01:08]} 30. Kd1 {[%clk 0:00:20]}  Rxd5 {[%clk 0:00:57]} 31. cxd5 {[%clk 0:00:21]}  Bc4 {[%clk 0:00:58]} 32. Bc1 {[%clk 0:00:17]}  Bf8 {[%clk 0:00:55]} 33. Re8 {[%clk 0:00:14]}  Kf7 {[%clk 0:00:50]} 34. Rb8 {[%clk 0:00:14]}  Bc5 {[%clk 0:00:47]} 35. d6 {[%clk 0:00:11]}  Ke6 {[%clk 0:00:44]} 36. Bf4 {[%clk 0:00:10]}  g5 {[%clk 0:00:43]} 37. Re8+ {[%clk 0:00:09]}  Kd7 {[%clk 0:00:39]} 38. Re7+ {[%clk 0:00:09]}  Kc8 {[%clk 0:00:38]} 39. Rc7+ {[%clk 0:00:07]}  Kd8 {[%clk 0:00:32]} 40. Bxg5+ {[%clk 0:00:07]}  Ke8 {[%clk 0:00:33]} 41. d7+ {[%clk 0:00:07]}  Kf7 {[%clk 0:00:32]} 42. d8=Q+ {[%clk 0:00:08]}  Kg6 {[%clk 0:00:31]} 43. Qf6+ {[%clk 0:00:08]}  Kh5 {[%clk 0:00:32]} 44. Rxh7+ {[%clk 0:00:08]}  Kg4 {[%clk 0:00:32]} 45. Rh4# {[%clk 0:00:09]} 1-0


[Site "https://www.chess.com"]

[Event "Titled Tuesday Blitz July 4 Late 2023"]
[White "Coelho, Ramyres Santana"]
[Black "Karas, Marek"]
[WhiteFideId "2120690"]
[BlackFideId "14928558"]
[WhiteElo "2301"]
[BlackElo "2445"]
[Result "0-1"]
[Round "4"]
[TimeControl "180+2"]
[Date "2023.07.04"]
[WhiteClock "0:00:42"]
[BlackClock "0:00:52"]
[Board "157"]

1. e4 {[%clk 0:03:00]}  c5 {[%clk 0:02:58]} 2. Nf3 {[%clk 0:02:57]}  Nc6 {[%clk 0:02:58]} 3. d4 {[%clk 0:02:57]}  cxd4 {[%clk 0:02:58]} 4. Nxd4 {[%clk 0:02:56]}  g6 {[%clk 0:02:59]} 5. Nc3 {[%clk 0:02:54]}  Bg7 {[%clk 0:02:59]} 6. Be3 {[%clk 0:02:55]}  Nf6 {[%clk 0:02:59]} 7. f3 {[%clk 0:02:55]}  d5 {[%clk 0:02:49]} 8. exd5 {[%clk 0:02:53]}  Nxd5 {[%clk 0:02:48]} 9. Nxd5 {[%clk 0:02:54]}  Qxd5 {[%clk 0:02:48]} 10. Nxc6 {[%clk 0:02:53]}  Qxc6 {[%clk 0:02:39]} 11. a4 {[%clk 0:02:41]}  O-O {[%clk 0:02:39]} 12. c3 {[%clk 0:02:38]}  Bf5 {[%clk 0:02:34]} 13. Be2 {[%clk 0:02:34]}  Rfd8 {[%clk 0:02:32]} 14. Qc1 {[%clk 0:02:34]}  a6 {[%clk 0:02:12]} 15. O-O {[%clk 0:02:33]}  Rac8 {[%clk 0:02:11]} 16. Rd1 {[%clk 0:02:31]}  h5 {[%clk 0:02:05]} 17. Rxd8+ {[%clk 0:02:31]}  Rxd8 {[%clk 0:02:06]} 18. Qe1 {[%clk 0:02:31]}  Qe6 {[%clk 0:02:02]} 19. Bf2 {[%clk 0:02:24]}  Qb3 {[%clk 0:02:00]} 20. Qc1 {[%clk 0:02:10]}  Kh7 {[%clk 0:01:52]} 21. h3 {[%clk 0:02:09]}  Bh6 {[%clk 0:01:52]} 22. Be3 {[%clk 0:02:05]}  Bxe3+ {[%clk 0:01:40]} 23. Qxe3 {[%clk 0:02:06]}  Qxb2 {[%clk 0:01:36]} 24. Rf1 {[%clk 0:02:01]}  Be6 {[%clk 0:01:30]} 25. Rd1 {[%clk 0:01:54]}  Rxd1+ {[%clk 0:01:29]} 26. Bxd1 {[%clk 0:01:55]}  Qa1 {[%clk 0:01:27]} 27. Qd3 {[%clk 0:01:54]}  Bb3 {[%clk 0:01:23]} 28. Kh2 {[%clk 0:01:32]}  Qxd1 {[%clk 0:01:24]} 29. Qe4 {[%clk 0:01:31]}  Qd6+ {[%clk 0:01:24]} 30. Kg1 {[%clk 0:01:29]}  b6 {[%clk 0:01:23]} 31. h4 {[%clk 0:01:24]}  b5 {[%clk 0:01:17]} 32. axb5 {[%clk 0:01:23]}  axb5 {[%clk 0:01:18]} 33. f4 {[%clk 0:01:20]}  Be6 {[%clk 0:01:14]} 34. Kh2 {[%clk 0:01:13]}  Qd2 {[%clk 0:01:11]} 35. Qf3 {[%clk 0:01:02]}  Qe1 {[%clk 0:00:40]} 36. Qg3 {[%clk 0:00:44]}  Qxg3+ {[%clk 0:00:39]} 37. Kxg3 {[%clk 0:00:45]}  Bf5 {[%clk 0:00:39]} 38. Kf3 {[%clk 0:00:45]}  Kg7 {[%clk 0:00:39]} 39. Ke3 {[%clk 0:00:46]}  Kf6 {[%clk 0:00:40]} 40. Kd4 {[%clk 0:00:46]}  Ke6 {[%clk 0:00:39]} 41. g3 {[%clk 0:00:44]}  Kd6 {[%clk 0:00:39]} 42. c4 {[%clk 0:00:42]}  bxc4 {[%clk 0:00:39]} 43. Kxc4 {[%clk 0:00:43]}  Bd7 {[%clk 0:00:39]} 44. Kd4 {[%clk 0:00:43]}  Ke6 {[%clk 0:00:39]} 45. Ke4 {[%clk 0:00:42]}  Bc6+ {[%clk 0:00:40]} 46. Ke3 {[%clk 0:00:39]}  Kf5 {[%clk 0:00:41]} 47. Kd4 {[%clk 0:00:38]}  Kg4 {[%clk 0:00:41]} 48. Kc5 {[%clk 0:00:37]}  Kxg3 {[%clk 0:00:41]} 49. Kxc6 {[%clk 0:00:35]}  Kxf4 {[%clk 0:00:41]} 50. Kd7 {[%clk 0:00:35]}  g5 {[%clk 0:00:42]} 51. hxg5 {[%clk 0:00:35]}  Kxg5 {[%clk 0:00:42]} 52. Kxe7 {[%clk 0:00:35]}  h4 {[%clk 0:00:43]} 53. Kxf7 {[%clk 0:00:35]}  h3 {[%clk 0:00:44]} 54. Ke7 {[%clk 0:00:36]}  h2 {[%clk 0:00:45]} 55. Ke6 {[%clk 0:00:36]}  h1=Q {[%clk 0:00:45]} 56. Ke5 {[%clk 0:00:37]}  Qe1+ {[%clk 0:00:45]} 57. Kd4 {[%clk 0:00:38]}  Kf4 {[%clk 0:00:46]} 58. Kd3 {[%clk 0:00:39]}  Qe4+ {[%clk 0:00:46]} 59. Kd2 {[%clk 0:00:39]}  Qe3+ {[%clk 0:00:46]} 60. Kd1 {[%clk 0:00:39]}  Qf2 {[%clk 0:00:46]} 61. Kc1 {[%clk 0:00:39]}  Qe2 {[%clk 0:00:47]} 62. Kb1 {[%clk 0:00:40]}  Qd2 {[%clk 0:00:48]} 63. Ka1 {[%clk 0:00:40]}  Ke3 {[%clk 0:00:49]} 64. Kb1 {[%clk 0:00:40]}  Kd3 {[%clk 0:00:50]} 65. Ka1 {[%clk 0:00:41]}  Kc3 {[%clk 0:00:51]} 66. Kb1 {[%clk 0:00:42]}  Qb2# {[%clk 0:00:52]} 0-1


[Site "https://www.chess.com"]

[Event "Titled Tuesday Blitz July 4 Late 2023"]
[White "Broca Jimenez, Fernando"]
[Black "Silva Lucena, Cristian"]
[WhiteFideId "5104742"]
[BlackFideId "2232588"]
[WhiteElo "2261"]
[BlackElo "2396"]
[Result "0-1"]
[Round "4"]
[TimeControl "180+2"]
[Date "2023.07.04"]
[WhiteClock "0:00:16"]
[BlackClock "0:01:42"]
[Board "159"]

1. Nf3 {[%clk 0:03:00]}  Nf6 {[%clk 0:02:58]} 2. b3 {[%clk 0:03:01]}  g6 {[%clk 0:02:58]} 3. Bb2 {[%clk 0:03:02]}  Bg7 {[%clk 0:02:58]} 4. g3 {[%clk 0:03:02]}  O-O {[%clk 0:02:59]} 5. Bg2 {[%clk 0:03:02]}  d6 {[%clk 0:02:59]} 6. O-O {[%clk 0:03:03]}  e5 {[%clk 0:03:00]} 7. d3 {[%clk 0:03:03]}  Nc6 {[%clk 0:02:59]} 8. Nbd2 {[%clk 0:03:03]}  a5 {[%clk 0:03:00]} 9. a4 {[%clk 0:03:01]}  Bg4 {[%clk 0:02:58]} 10. e4 {[%clk 0:02:58]}  Qd7 {[%clk 0:02:58]} 11. Re1 {[%clk 0:02:48]}  Rfe8 {[%clk 0:02:52]} 12. Nf1 {[%clk 0:02:47]}  Nd4 {[%clk 0:02:49]} 13. Ne3 {[%clk 0:02:45]}  Nxf3+ {[%clk 0:02:44]} 14. Bxf3 {[%clk 0:02:46]}  Bxf3 {[%clk 0:02:44]} 15. Qxf3 {[%clk 0:02:47]}  c6 {[%clk 0:02:44]} 16. Kg2 {[%clk 0:02:34]}  h5 {[%clk 0:02:44]} 17. h4 {[%clk 0:02:29]}  Ng4 {[%clk 0:02:44]} 18. Nxg4 {[%clk 0:02:25]}  Qxg4 {[%clk 0:02:43]} 19. Qxg4 {[%clk 0:02:19]}  hxg4 {[%clk 0:02:44]} 20. Rad1 {[%clk 0:01:28]}  c5 {[%clk 0:02:41]} 21. f3 {[%clk 0:01:22]}  gxf3+ {[%clk 0:02:41]} 22. Kxf3 {[%clk 0:01:22]}  f5 {[%clk 0:02:41]} 23. Bc1 {[%clk 0:01:11]}  Kf7 {[%clk 0:02:38]} 24. Bg5 {[%clk 0:01:01]}  Rab8 {[%clk 0:02:37]} 25. Ra1 {[%clk 0:00:59]}  Ke6 {[%clk 0:02:23]} 26. Rf1 {[%clk 0:00:52]}  d5 {[%clk 0:02:20]} 27. Ke3 {[%clk 0:00:43]}  Rec8 {[%clk 0:02:12]} 28. exd5+ {[%clk 0:00:42]}  Kxd5 {[%clk 0:02:10]} 29. c4+ {[%clk 0:00:43]}  Ke6 {[%clk 0:02:10]} 30. Rad1 {[%clk 0:00:40]}  Rc6 {[%clk 0:02:06]} 31. Rf3 {[%clk 0:00:36]}  Rb6 {[%clk 0:02:04]} 32. Rb1 {[%clk 0:00:34]}  Rc8 {[%clk 0:02:04]} 33. Rf2 {[%clk 0:00:25]}  e4 {[%clk 0:01:57]} 34. dxe4 {[%clk 0:00:24]}  Bd4+ {[%clk 0:01:57]} 35. Kf3 {[%clk 0:00:23]}  Bxf2 {[%clk 0:01:57]} 36. Kxf2 {[%clk 0:00:24]}  fxe4 {[%clk 0:01:57]} 37. Ke3 {[%clk 0:00:24]}  Ke5 {[%clk 0:01:52]} 38. g4 {[%clk 0:00:22]}  Rf8 {[%clk 0:01:48]} 39. Ke2 {[%clk 0:00:21]}  Rf3 {[%clk 0:01:46]} 40. Rd1 {[%clk 0:00:19]}  Rd3 {[%clk 0:01:43]} 41. Rf1 {[%clk 0:00:16]}  Rbxb3 {[%clk 0:01:42]} 0-1


[Site "https://www.chess.com"]

[Event "Titled Tuesday Blitz July 4 Late 2023"]
[White "SicilianPanzer"]
[Black "micke12a"]
[WhiteElo "2237"]
[BlackElo "2374"]
[Result "1-0"]
[Round "4"]
[TimeControl "180+2"]
[Date "2023.07.04"]
[WhiteClock "0:00:05"]
[BlackClock "0:00:01"]
[Board "160"]

1. Nf3 {[%clk 0:02:59]}  Nf6 {[%clk 0:02:59]} 2. g3 {[%clk 0:02:58]}  g6 {[%clk 0:02:56]} 3. Bg2 {[%clk 0:02:58]}  Bg7 {[%clk 0:02:57]} 4. O-O {[%clk 0:02:58]}  O-O {[%clk 0:02:58]} 5. d4 {[%clk 0:02:58]}  d5 {[%clk 0:02:57]} 6. c4 {[%clk 0:02:58]}  c6 {[%clk 0:02:57]} 7. cxd5 {[%clk 0:02:57]}  cxd5 {[%clk 0:02:58]} 8. Nc3 {[%clk 0:02:57]}  Ne4 {[%clk 0:02:57]} 9. Nxe4 {[%clk 0:02:43]}  dxe4 {[%clk 0:02:56]} 10. Ne5 {[%clk 0:02:43]}  Bf5 {[%clk 0:02:32]} 11. Bf4 {[%clk 0:02:35]}  Nc6 {[%clk 0:02:27]} 12. Nxc6 {[%clk 0:01:55]}  bxc6 {[%clk 0:02:25]} 13. e3 {[%clk 0:01:53]}  h5 {[%clk 0:02:17]} 14. Rc1 {[%clk 0:01:44]}  Qb6 {[%clk 0:02:06]} 15. Qc2 {[%clk 0:01:42]}  Rac8 {[%clk 0:02:06]} 16. b3 {[%clk 0:01:25]}  Qa5 {[%clk 0:01:38]} 17. a4 {[%clk 0:01:15]}  Qd5 {[%clk 0:01:37]} 18. Qc5 {[%clk 0:00:52]}  Qxb3 {[%clk 0:01:31]} 19. Qxa7 {[%clk 0:00:50]}  Qe6 {[%clk 0:01:01]} 20. Qc5 {[%clk 0:00:38]}  f6 {[%clk 0:00:56]} 21. h4 {[%clk 0:00:37]}  Rfd8 {[%clk 0:00:50]} 22. f3 {[%clk 0:00:24]}  Rd5 {[%clk 0:00:46]} 23. Qb6 {[%clk 0:00:23]}  exf3 {[%clk 0:00:38]} 24. Bxf3 {[%clk 0:00:22]}  Be4 {[%clk 0:00:39]} 25. Bxe4 {[%clk 0:00:18]}  Qxe4 {[%clk 0:00:39]} 26. Rxc6 {[%clk 0:00:16]}  Ra8 {[%clk 0:00:31]} 27. Re6 {[%clk 0:00:08]}  Qf5 {[%clk 0:00:15]} 28. Rxe7 {[%clk 0:00:08]}  Rxa4 {[%clk 0:00:12]} 29. Qb8+ {[%clk 0:00:06]}  Kh7 {[%clk 0:00:06]} 30. Qb7 {[%clk 0:00:06]}  Rd7 {[%clk 0:00:03]} 31. Rxd7 {[%clk 0:00:06]}  Qxd7 {[%clk 0:00:02]} 32. Qxd7 {[%clk 0:00:06]}  g5 {[%clk 0:00:03]} 33. hxg5 {[%clk 0:00:05]}  fxg5 {[%clk 0:00:04]} 34. Bxg5 {[%clk 0:00:05]}  Ra7 {[%clk 0:00:05]} 35. Qxa7 {[%clk 0:00:04]}  Kg6 {[%clk 0:00:05]} 36. Qc5 {[%clk 0:00:03]}  h4 {[%clk 0:00:03]} 37. Qf5+ {[%clk 0:00:04]}  Kh5 {[%clk 0:00:03]} 38. Bf6+ {[%clk 0:00:04]}  Kh6 {[%clk 0:00:01]} 39. Qg5+ {[%clk 0:00:05]} 1-0


[Site "https://www.chess.com"]

[Event "Titled Tuesday Blitz July 4 Late 2023"]
[White "Schachpanda_Youtube"]
[Black "Lutz, Igor Oscar"]
[BlackFideId "2110806"]
[WhiteElo "2220"]
[BlackElo "1980"]
[Result "1-0"]
[Round "4"]
[TimeControl "180+2"]
[Date "2023.07.04"]
[WhiteClock "0:01:56"]
[BlackClock "0:00:59"]
[Board "162"]

1. e4 {[%clk 0:03:00]}  c5 {[%clk 0:03:00]} 2. d4 {[%clk 0:03:00]}  cxd4 {[%clk 0:03:00]} 3. c3 {[%clk 0:03:01]}  Nf6 {[%clk 0:03:00]} 4. e5 {[%clk 0:03:00]}  Nd5 {[%clk 0:02:59]} 5. Qxd4 {[%clk 0:03:00]}  Nb6 {[%clk 0:02:54]} 6. Nf3 {[%clk 0:02:56]}  Nc6 {[%clk 0:02:55]} 7. Qe4 {[%clk 0:02:56]}  d6 {[%clk 0:02:48]} 8. exd6 {[%clk 0:02:53]}  Qxd6 {[%clk 0:02:48]} 9. Bf4 {[%clk 0:02:51]}  Qd5 {[%clk 0:02:44]} 10. Bd3 {[%clk 0:02:37]}  Qxe4+ {[%clk 0:02:16]} 11. Bxe4 {[%clk 0:02:37]}  Bd7 {[%clk 0:02:17]} 12. O-O {[%clk 0:02:35]}  e6 {[%clk 0:02:10]} 13. b3 {[%clk 0:02:23]}  Be7 {[%clk 0:02:03]} 14. a4 {[%clk 0:02:10]}  a5 {[%clk 0:02:03]} 15. Na3 {[%clk 0:02:08]}  Bf6 {[%clk 0:02:02]} 16. Nb5 {[%clk 0:02:07]}  O-O {[%clk 0:01:58]} 17. Rad1 {[%clk 0:02:01]}  e5 {[%clk 0:00:59]} 18. Be3 {[%clk 0:01:56]} 1-0


[Site "https://www.chess.com"]